Cogmind - Beta 17 @@@ ROGUE MODE // 2026.08.21 @ 15:07:19 Player: LandRaider Result: Destroyed by D-53 Grenadier with Mini Grenade Launcher Performance ------------- Evolutions (0) 0 Regions Visited (0) 0 Robots Destroyed (2) 10 Value Destroyed (13) 13 Prototype IDs (0) 0 Alien Tech Used (0) 0 Bonus (0) 0 TOTAL SCORE: 23 Bonus ------- None Cogmind --------- Core Integrity 0/250 Matter 300/300 Energy 100/100 System Corruption 0% Temperature Cool (0) Movement Core (100) Ox1 Location -11/Scrapyard Parts ------- > --- POWER (1) -------- (None) > --- PROPULSION (2) --- (None) > --- UTILITY (2) ------ Small Storage Unit > --- WEAPON (2) ------- (None) > --- INVENTORY (8) ---- Ion Engine Light Treads Light Treads Wheel Compact Wheel EM Pulse Gun Mining Laser Peak State ------------ > --- POWER ------------ Light Ion Engine > --- PROPULSION ------- Aluminum Leg Aluminum Leg > --- UTILITY ---------- Small Storage Unit Seismic Detector > --- WEAPON ----------- Medium Laser Medium Laser > --- INVENTORY -------- Ion Engine Light Treads Light Treads Wheel Compact Wheel EM Pulse Gun Mining Laser [Rating: 7] Favorites ----------- Power Light Ion Engine Engine Light Ion Engine Propulsion Aluminum Leg Leg Aluminum Leg Utility Small Storage Unit Device Seismic Detector Storage Small Storage Unit Weapon Medium Laser Energy Gun Medium Laser Build | -11 ------- Run | Yrd Slots Evolved . | . Power . | . Propulsion . | . Utility . | . Weapon . | . Parts Attached 7 | 7 Power 1 | 1 Engine 1 | 1 Core . | . Reactor . | . Propulsion 2 | 2 Treads . | . Leg 2 | 2 Wheel . | . Hover . | . Flight . | . Utility 2 | 2 Device 1 | 1 Storage 1 | 1 Processor . | . Hackware . | . Protection . | . Artifact . | . Weapon 2 | 2 Energy Gun 2 | 2 Energy Cannon . | . Ballistic Gun . | . Ballistic Cannon . | . Launcher . | . Special Weapon . | . Impact Weapon . | . Slashing Weapon . | . Piercing Weapon . | . Special Melee Weapon . | . Unidentified Prototypes . | . Parts Lost 6 | 6 Power 1 | 1 Propulsion 2 | 2 Utility 1 | 1 Weapon 2 | 2 Highest Loss Streak 6 | 6 To Critical Strikes . | . Average Backups 6 | 6 Power . | . Propulsion 3 | 3 Utility . | . Weapon 1 | 1 Tool/Special . | . Unused Backups 7 | 7 Power 1 | 1 Propulsion 4 | 4 Utility . | . Weapon 2 | 2 Tool/Special . | . Average Slot Usage (%) . | . Peak Build Rating 7 | 7 Average Rating 6 | 6 On Entrance . | . Avg Prop Armor Cover (%) . | . Naked Turns . | . Heaviest Build 13 | 13 Greatest Support 20 | 20 Greatest Overweight (x) 1 | 1 Average Overweight (x) . | . Largest Inventory Capacity 8 | 8 Average Capacity 7 | 7 Most Carried 7 | 7 Average Carried 6 | 6 Final Capacity 8 | 8 Final Carried 7 | 7 Class Distribution -------------------- None Dominant Class ---------------- None Resources | -11 ----------- Run | Yrd Matter Collected 270 | 270 Remotely . | . Salvage Created 124 | 124 Parts 6 | 6 Haulers Intercepted . | . Recyclers Shooed . | . Parts Field Recycled . | . Retrieved Matter . | . Parts Self-Destructed . | . Prevented . | . Parts Restored . | . Kills | -11 ------- Run | Yrd Combat Hostiles Destroyed . | . Classes Destroyed 2 | 2 Tunneler 1 | 1 Recycler 1 | 1 Best Kill Streak 2 | 2 Combat Bots Only . | . Max Kills in Single Turn 1 | 1 Gunslinging . | . Exploded . | . Melee . | . Uniques/NPCs Destroyed . | . Combat | -11 -------- Run | Yrd Hostile Shots Fired 21 | 21 Missed 3 | 3 Hits 18 | 18 Projectile 18 | 18 AOE 18 | 18 Damage Taken 680 | 680 Core 259 | 259 Absorbed by Shields . | . Core Remaining (%) . | . Volleys Fired 2 | 2 Largest 2 | 2 Hottest 100 | 100 Shots Fired 4 | 4 Gun 4 | 4 Cannon . | . Launcher . | . Special . | . Kinetic . | . Thermal 4 | 4 Explosive . | . Electromagnetic . | . Robot Hit Streak 3 | 3 Robot Miss Streak . | . Penetration Max . | . Secondary Targets . | . Shots Hit Robots 3 | 3 Core Hits 3 | 3 Critical Kills . | . Critical Parts Destroyed . | . Critical Strikes . | . Melee Attacks . | . Impact . | . Slashing . | . Piercing . | . Sneak Attacks . | . Combat Hostiles . | . Follow-up Attacks . | . Damage Inflicted 38 | 38 Guns 38 | 38 Cannons . | . Explosions . | . Melee . | . Ramming . | . Kinetic . | . Thermal 38 | 38 Explosive . | . Electromagnetic . | . Impact . | . Slashing . | . Piercing . | . Highest Corruption . | . Average Corruption . | . Corruption Purged . | . Corruption Blocked . | . Overload Shots . | . Overflow Damage . | . Projectiles . | . Explosions . | . Melee . | . Knockbacks . | . Impact . | . Kinetic . | . Secondary . | . Self-Inflicted Damage . | . Shots . | . Rammed . | . Targets Rammed . | . Kicked . | . Crushed . | . Highest Temperature 78 | 78 Average Temperature 40 | 40 Received Heat Transfer . | . Siege Activations . | . Martial Activations . | . Shielding Activations . | . Robots Disrupted . | . Combat Hostiles . | . Robots Corrupted . | . Combat Hostiles . | . Parts Fried . | . Impact Corruptions . | . Robots Melted . | . Combat Hostiles . | . Parts Melted . | . Heat Transferred 111 | 111 Parts Sabotaged . | . Parts Stolen . | . Parts Stripped . | . Power Chain Reactions . | . Alert | -11 ------- Run | Yrd Maximum Alert Level . | . Low Security (%) 100 | 100 Level 1 . | . Level 2 . | . Level 3 . | . Level 4 . | . Level 5 . | . High Security . | . Max Security . | . Peak Influence 10 | 10 Initial . | . Average . | . Influence Increases 10 | 10 Destroy 0b10 Robot/NC 10 | 10 Influence Decreases 10 | 10 Time Decay 10 | 10 Squads Dispatched . | . Investigation . | . Extermination . | . Reinforcement . | . Assault . | . Garrison . | . Intercept . | . Searches Triggered . | . Construction Impeded . | . Haulers Reinforced . | . Active Scanning Responses . | . Cargo Convoy Interrupts . | . Stealth | -11 --------- Run | Yrd Distress Signals . | . Communications Jammed . | . Distress Signals . | . Times Spotted 2 | 2 Peak Tracking Total 2 | 2 Tactical Retreats . | . Traps | -11 ------- Run | Yrd Traps Triggered . | . Indirectly . | . Trap Hack Attempts . | . Triggered . | . Disarmed . | . Reprogrammed . | . Reused . | . Traps Extracted . | . Installed . | . Triggered . | . Machines | -11 ---------- Run | Yrd Machines Disabled . | . Max in Single Turn . | . Machines Repaired . | . Machines Dismantled . | . Machines Sabotaged . | . Overloaded Fab Kills . | . Hacking | -11 --------- Run | Yrd Machines Accessed . | . Terminals . | . Fabricators . | . Repair Stations . | . Recycling Units . | . Scanalyzers . | . Garrison Access . | . Total Hacks . | . Successful . | . Failed . | . Catastrophic . | . Database Lockouts . | . Manual . | . Terminals . | . Fabricators . | . Repair Stations . | . Recycling Units . | . Scanalyzers . | . Garrison Access . | . Terminal Hacks . | . Fabricator Hacks . | . Repair Station Hacks . | . Recycling Unit Hacks . | . Scanalyzer . | . Garrison Access Hacks . | . Unauthorized Hacks . | . Terminals . | . Fabricators . | . Repair Stations . | . Recycling Units . | . Scanalyzers . | . Garrison Access . | . Data Cores Recovered . | . Used . | . Hacking Detections . | . Full Trace Events . | . Feedback Events . | . Feedback Blocked . | . Robot Schematics Acquired . | . Robots Built . | . Authchips . | . Time . | . Total Robot Build Rating . | . Part Schematics Acquired . | . Parts Built . | . Authchips . | . Time . | . Total Part Build Rating . | . Part Studies Acquired . | . Parts Repaired . | . Time . | . Parts Recycled . | . Recycled Matter . | . Retrieved Matter . | . Retrieved Components . | . Parts Scanalyzed . | . Part Schematics Acquired . | . Parts Damaged . | . Bothacking | -11 ------------ Run | Yrd Used RIF Installer . | . Robots Hacked . | . Non-combat . | . Combat . | . Robot Hacks Applied . | . Relay Couplers Released . | . Fabnet Peak Effective % . | . Robots Rewired . | . Allies Hacked . | . Hacks Repelled . | . Allies | -11 -------- Run | Yrd Total Allies . | . Largest Group . | . Highest-Rated Group . | . Highest-Rated Ally . | . Total Orders . | . Ally Attacks . | . Total Damage . | . Kills . | . Allies Corrupted . | . Allies Melted . | . Intel | -11 ------- Run | Yrd Active Infowar (turns) 902 | 902 Seismic 902 | 902 Robot Analysis Total . | . Derelict Logs Recovered . | . Drone Launches . | . Drone Recoveries . | . Exploration | -11 ------------- Run | Yrd Turns Passed 1017 | 1017 Spaces Moved 72 | 72 Core 3 | 3 Treads . | . Legs 69 | 69 Wheels . | . Hover . | . Flight . | . Fastest Speed 50 | 50 Average Speed 126 | 126 Slowest Speed 190 | 190 Overloaded Moves . | . Propulsion Burnouts . | . Robots Hopped . | . Potential Cave-ins . | . Cave-ins Triggered . | . Exploration Rate (%) 7 | 7 Regions Visited . Branch Regions . Pre-discovered Areas . | . Known Exits Taken . | . Unknown Exits Taken . | . Scrap Searched . | . Spaces Dug . | . Terrain Destroyed . | . Melee . | . Projectile . | . AOE . | . Terrain Rammed . | . Walls Destroyed . | . Machines Disabled . | . Actions | -11 --------- Run | Yrd Total 990 | 990 Wait 902 | 902 Move 72 | 72 Hop . | . Pick Up 7 | 7 Fast Attach 7 | 7 Attach . | . Detach . | . Swap . | . Drop . | . Fire 2 | 2 Melee . | . Ram . | . Kick . | . Crush . | . Escape Stasis . | . Rewire . | . Trap . | . Miscellaneous . | . Route ------- -11/Scrapyard (discovered 1 exit: [*Mat]) History --------- Turn | Location | Event 8 | -11/Scrapyard | Discovered new exit (range 15) 981 | -11/Scrapyard | Assembled infested the area 999 | -11/Scrapyard | Core integrity fell below 50% 1007 | -11/Scrapyard | Core integrity fell below 20% 1018 | -11/Scrapyard | Destroyed by D-53 Grenadier with Mini Grenade Launcher Last Messages --------------- response squad. [Achievement: Curiosity Killed The Cat] 00981_ C-45 Heavy ARC bursts open, deploying its payload. 00981_ D-53 Grenadier unfolds itself. 00981_ K-01 Serf destroyed. 00982_ Seismic Detector destroyed. 00986_ Med. Laser destroyed. 00986_ Lgt. Ion Engine destroyed. 00986_ Aluminum Leg destroyed. 00988_ D-53 Grenadier destroyed. 00989_ K-01 Serf collects debris. 00991_ The unstable cave ceiling collapses. 00991_ K-01 Serf collects debris. 00992_ Med. Laser destroyed. 00994_ K-01 Serf destroyed. 00995_ K-01 Serf collects debris. 01004_ Aluminum Leg destroyed. 01007_ The unstable cave ceiling collapses. 01008_ T-07 Excavator destroyed. 01015_ The unstable cave ceiling collapses. Map ----- +----------------------------------------------------+ | ?????????????????????????????????????????????????? | | ?????????????????????????????????????????????????? | | ?????????????????????????????????????????????????? | | ?????????????????????????????????????????????????? | | ?????????????????????????????????????????????????? | | ?????????????????????????????????????????????????? | | ?????????????????????????????????????????????????? | | ?????????????????????????????????????????????????? | | ?????????????????????????????????????????????????? | | ?????????????????????????????????????????????????? | | ?????????????????????????????????????????????????? | | ????????????????????? ??????????????????????????? | | ????????????????????? ??????????????????????????? | | ????????????????????? ??????????????????????????? | | ?????????????????????# ???????#??## ????????????? | | ?????????????????????# ?????? ### ????????????? | | ?????????????????????# ?????? ???????????? | | ????????????????????## ????? ???????????? | | ????????????????????# ###?? ??????????? | | ????????????????????# # ## ??????????? | | ??????????????????#### # ??????????? | | ?????##########???# ?????????? | | ?????# #???# ??????????? | | ?????# #???# ## #??????????? | | ?##### !##### ????????? | | ?# =% t @ ????????? | | ?##*= d ###???????????????? | | ??#### t##### < #??????????????? | | ?????# #???# * #??????????????? | | ?????# #???###### #??????????????? | | ?????##########???????###### #??????????????? | | ???????????????????????????? #??????????????? | | ????????????????????????????? ##??????????????? | | ?????????????????????????????#####???????????????? | | ?????????????????????????????????????????????????? | | ?????????????????????????????????????????????????? | | ?????????????????????????????????????????????????? | | ?????????????????????????????????????????????????? | | ?????????????????????????????????????????????????? | | ?????????????????????????????????????????????????? | | ?????????????????????????????????????????????????? | | ?????????????????????????????????????????????????? | | ?????????????????????????????????????????????????? | | ?????????????????????????????????????????????????? | | ?????????????????????????????????????????????????? | | ?????????????????????????????????????????????????? | | ?????????????????????????????????????????????????? | | ?????????????????????????????????????????????????? | | ?????????????????????????????????????????????????? | | ?????????????????????????????????????????????????? | +----------------------------------------------------+ Best States ------------- Heat Dissipation 25 Energy Generation 10 Energy Capacity 125 Matter Stores 300 Matter Capacity 300 Sight Range 16 Terrain Scan Density 10 Evasion (%) 55 Item Schematics ----------------- None Robot Schematics ------------------ None Fabricated ------------ Nothing Repaired ---------- Nothing Studied --------- None Alien Tech Used ----------------- None Achievements -------------- Curiosity Killed The Cat Challenges ------------ None Game ------ Seed NeutrinoWeldingParser Manual? 0 Play Time 00:02:56 Cumulative 93.5 hours Start 2026.08.21 @ 15:05:51 End 2026.08.21 @ 15:07:19 Sessions 0 Manual Loads 0 Difficulty Rogue Special Mode None Game No. 86 Rogue 84 Adventurer 2 Explorer 0 Win Type - Total 0 Types 0/0/0/0/0/0/0/0/0/0 Lore% 45 Gallery% 39 Achievement% 31 Wizard Run 0 Options --------- Layout 0 ASCII 0 Keyboard 0 Movement Arrows Keybinds 0 Fullscreen 2 Font 24/Smallcaps Map View 76x50 Zoom Use 0% Tactical HUD 1 Map Filters NONE Filters NONE Steam 1 RUN: 093f74e1-ecc3-4855-984b-9a7c5a4007e9